[Event "Titled Tuesday Blitz May 4 2021"]
[White "Darini, Pouria"]
[Black "tylityli"]
[WhiteFideId "12502200"]
[WhiteElo "2489"]
[BlackElo "2313"]
[Result "1-0"]
[Round "01"]
[TimeControl "180+1"]
[Date "2021.05.04"]
[WhiteClock "0:00:48"]
[BlackClock "0:00:01"]

1. e4 {[%clk 0:02:59]}  e5 {[%clk 0:02:56]} 2. Nf3 {[%clk 0:02:56]}  Nc6 {[%clk 0:02:54]} 3. d4 {[%clk 0:02:54]}  exd4 {[%clk 0:02:53]} 4. Nxd4 {[%clk 0:02:55]}  Nf6 {[%clk 0:02:52]} 5. Nxc6 {[%clk 0:02:56]}  bxc6 {[%clk 0:02:50]} 6. e5 {[%clk 0:02:57]}  Qe7 {[%clk 0:02:50]} 7. Qe2 {[%clk 0:02:57]}  Nd5 {[%clk 0:02:47]} 8. h4 {[%clk 0:02:58]}  d6 {[%clk 0:02:42]} 9. c4 {[%clk 0:02:55]}  Ba6 {[%clk 0:02:41]} 10. exd6 {[%clk 0:02:56]}  cxd6 {[%clk 0:02:31]} 11. Qxe7+ {[%clk 0:02:56]}  Nxe7 {[%clk 0:02:30]} 12. Nc3 {[%clk 0:02:57]}  O-O-O {[%clk 0:02:19]} 13. Be3 {[%clk 0:02:49]}  Kb7 {[%clk 0:02:11]} 14. O-O-O {[%clk 0:02:49]}  d5 {[%clk 0:02:06]} 15. Bc5 {[%clk 0:02:36]}  Ng6 {[%clk 0:01:40]} 16. Bxf8 {[%clk 0:02:25]}  Rhxf8 {[%clk 0:01:38]} 17. cxd5 {[%clk 0:02:25]}  Bxf1 {[%clk 0:01:20]} 18. dxc6+ {[%clk 0:02:22]}  Kxc6 {[%clk 0:01:20]} 19. Rdxf1 {[%clk 0:02:23]}  Nf4 {[%clk 0:01:14]} 20. g3 {[%clk 0:02:21]}  Nd3+ {[%clk 0:01:13]} 21. Kc2 {[%clk 0:02:22]}  Rfe8 {[%clk 0:01:02]} 22. a3 {[%clk 0:02:09]}  Ne5 {[%clk 0:00:52]} 23. Rd1 {[%clk 0:01:49]}  Ng4 {[%clk 0:00:44]} 24. Rxd8 {[%clk 0:01:49]}  Rxd8 {[%clk 0:00:45]} 25. Rf1 {[%clk 0:01:48]}  f5 {[%clk 0:00:41]} 26. b4 {[%clk 0:01:42]}  g6 {[%clk 0:00:38]} 27. Rd1 {[%clk 0:01:34]}  Re8 {[%clk 0:00:27]} 28. Rd2 {[%clk 0:01:29]}  Re1 {[%clk 0:00:25]} 29. f3 {[%clk 0:01:10]}  Ne3+ {[%clk 0:00:23]} 30. Kd3 {[%clk 0:01:06]}  Nf1 {[%clk 0:00:19]} 31. Re2 {[%clk 0:00:58]}  Ra1 {[%clk 0:00:14]} 32. b5+ {[%clk 0:00:58]}  Kc5 {[%clk 0:00:13]} 33. Re5+ {[%clk 0:00:50]}  Kd6 {[%clk 0:00:10]} 34. Rd5+ {[%clk 0:00:51]}  Ke6 {[%clk 0:00:10]} 35. g4 {[%clk 0:00:50]}  Rxa3 {[%clk 0:00:08]} 36. gxf5+ {[%clk 0:00:51]}  gxf5 {[%clk 0:00:08]} 37. Rc5 {[%clk 0:00:52]}  Ng3 {[%clk 0:00:05]} 38. Kd4 {[%clk 0:00:47]}  Rb3 {[%clk 0:00:02]} 39. Rc6+ {[%clk 0:00:48]}  Kd7 {[%clk 0:00:02]} 40. Kc4 {[%clk 0:00:47]}  Rb2 {[%clk 0:00:01]} 41. Rh6 {[%clk 0:00:48]} 1-0


[Site "https://www.chess.com"]

[Event "Titled Tuesday Blitz May 4 2021"]
[White "Daulyte-Cornette, Deimante"]
[Black "Wieczorek, Oskar"]
[WhiteFideId "12802859"]
[BlackFideId "1133950"]
[WhiteElo "2285"]
[BlackElo "2258"]
[Result "1-0"]
[Round "01"]
[TimeControl "180+1"]
[Date "2021.05.04"]
[WhiteClock "0:00:04"]
[BlackClock "0:00:10"]

1. e4 {[%clk 0:02:56]}  e5 {[%clk 0:03:00]} 2. Bc4 {[%clk 0:02:55]}  Nc6 {[%clk 0:02:59]} 3. Nc3 {[%clk 0:02:52]}  Nf6 {[%clk 0:02:58]} 4. d3 {[%clk 0:02:51]}  Na5 {[%clk 0:02:58]} 5. Bb3 {[%clk 0:02:50]}  Nxb3 {[%clk 0:02:52]} 6. axb3 {[%clk 0:02:51]}  Be7 {[%clk 0:02:52]} 7. f4 {[%clk 0:02:30]}  d6 {[%clk 0:02:50]} 8. Nf3 {[%clk 0:02:29]}  exf4 {[%clk 0:02:49]} 9. Bxf4 {[%clk 0:02:28]}  O-O {[%clk 0:02:50]} 10. O-O {[%clk 0:02:28]}  c6 {[%clk 0:02:51]} 11. Qe1 {[%clk 0:02:20]}  a6 {[%clk 0:02:24]} 12. Kh1 {[%clk 0:02:19]}  b5 {[%clk 0:02:12]} 13. Be3 {[%clk 0:01:57]}  d5 {[%clk 0:01:31]} 14. e5 {[%clk 0:01:46]}  Ne8 {[%clk 0:01:32]} 15. Nd4 {[%clk 0:01:37]}  Qd7 {[%clk 0:01:17]} 16. Nf5 {[%clk 0:01:31]}  g6 {[%clk 0:00:57]} 17. Nxe7+ {[%clk 0:01:06]}  Qxe7 {[%clk 0:00:58]} 18. d4 {[%clk 0:00:52]}  Ng7 {[%clk 0:00:46]} 19. Bh6 {[%clk 0:00:52]}  Re8 {[%clk 0:00:37]} 20. Qd2 {[%clk 0:00:47]}  b4 {[%clk 0:00:27]} 21. Na4 {[%clk 0:00:34]}  Bf5 {[%clk 0:00:27]} 22. Nc5 {[%clk 0:00:34]}  Ne6 {[%clk 0:00:27]} 23. Nxa6 {[%clk 0:00:21]}  Be4 {[%clk 0:00:25]} 24. Nxb4 {[%clk 0:00:17]}  Rxa1 {[%clk 0:00:19]} 25. Rxa1 {[%clk 0:00:18]}  Qh4 {[%clk 0:00:17]} 26. Nxc6 {[%clk 0:00:12]}  Rc8 {[%clk 0:00:17]} 27. Nb4 {[%clk 0:00:10]}  Nxd4 {[%clk 0:00:14]} 28. c3 {[%clk 0:00:08]}  Nxb3 {[%clk 0:00:14]} 29. Qe1 {[%clk 0:00:05]}  Qxh6 {[%clk 0:00:12]} 30. Ra7 {[%clk 0:00:04]}  Qg5 {[%clk 0:00:11]} 31. Qf2 {[%clk 0:00:04]}  Nc5 {[%clk 0:00:10]} 32. Qxf7+ {[%clk 0:00:04]} 1-0


[Site "https://www.chess.com"]

[Event "Titled Tuesday Blitz May 4 2021"]
[White "Davtyan, David Arm."]
[Black "Martirosyan, Haik M."]
[WhiteFideId "13310046"]
[BlackFideId "13306553"]
[WhiteElo "2028"]
[BlackElo "2597"]
[Result "0-1"]
[Round "01"]
[TimeControl "180+1"]
[Date "2021.05.04"]
[WhiteClock "0:00:01"]
[BlackClock "0:01:16"]

1. e4 {[%clk 0:02:59]}  g6 {[%clk 0:02:56]} 2. Nc3 {[%clk 0:02:56]}  Bg7 {[%clk 0:02:56]} 3. f4 {[%clk 0:02:57]}  c5 {[%clk 0:02:56]} 4. Nf3 {[%clk 0:02:56]}  a6 {[%clk 0:02:56]} 5. a4 {[%clk 0:02:53]}  Nc6 {[%clk 0:02:56]} 6. Bc4 {[%clk 0:02:53]}  d6 {[%clk 0:02:51]} 7. d3 {[%clk 0:02:50]}  Nf6 {[%clk 0:02:50]} 8. O-O {[%clk 0:02:50]}  Bg4 {[%clk 0:02:49]} 9. Be3 {[%clk 0:02:44]}  Nd4 {[%clk 0:02:46]} 10. Bxd4 {[%clk 0:02:36]}  cxd4 {[%clk 0:02:46]} 11. Ne2 {[%clk 0:02:37]}  Nd7 {[%clk 0:02:41]} 12. h3 {[%clk 0:02:20]}  Bxf3 {[%clk 0:02:39]} 13. Rxf3 {[%clk 0:02:21]}  O-O {[%clk 0:02:39]} 14. Qe1 {[%clk 0:02:04]}  e6 {[%clk 0:02:38]} 15. Qg3 {[%clk 0:01:54]}  Rc8 {[%clk 0:02:22]} 16. Bb3 {[%clk 0:01:42]}  Nc5 {[%clk 0:02:21]} 17. f5 {[%clk 0:01:35]}  Nxb3 {[%clk 0:02:18]} 18. cxb3 {[%clk 0:01:36]}  Be5 {[%clk 0:02:14]} 19. Nf4 {[%clk 0:01:34]}  Kh8 {[%clk 0:02:06]} 20. fxe6 {[%clk 0:01:22]}  g5 {[%clk 0:01:55]} 21. e7 {[%clk 0:01:07]}  Qxe7 {[%clk 0:01:55]} 22. Nd5 {[%clk 0:01:08]}  Qe6 {[%clk 0:01:55]} 23. Qg4 {[%clk 0:01:07]}  Qxg4 {[%clk 0:01:47]} 24. hxg4 {[%clk 0:01:08]}  Kg7 {[%clk 0:01:47]} 25. Raf1 {[%clk 0:01:02]}  f6 {[%clk 0:01:47]} 26. Nb6 {[%clk 0:00:46]}  Rc7 {[%clk 0:01:46]} 27. a5 {[%clk 0:00:35]}  Kg6 {[%clk 0:01:44]} 28. Nc4 {[%clk 0:00:35]}  Rc5 {[%clk 0:01:38]} 29. Rf5 {[%clk 0:00:34]}  Rb5 {[%clk 0:01:38]} 30. Rc1 {[%clk 0:00:23]}  Rf7 {[%clk 0:01:36]} 31. Nb6 {[%clk 0:00:16]}  Rxb3 {[%clk 0:01:34]} 32. Rc8 {[%clk 0:00:15]}  Rxb2 {[%clk 0:01:33]} 33. Nd5 {[%clk 0:00:12]}  Kg7 {[%clk 0:01:31]} 34. Rb8 {[%clk 0:00:08]}  Rb5 {[%clk 0:01:26]} 35. Rf1 {[%clk 0:00:07]}  Rxa5 {[%clk 0:01:25]} 36. Rc1 {[%clk 0:00:07]}  Rc5 {[%clk 0:01:26]} 37. Rb1 {[%clk 0:00:05]}  b5 {[%clk 0:01:20]} 38. Ra1 {[%clk 0:00:03]}  Ra7 {[%clk 0:01:17]} 39. Kf2 {[%clk 0:00:02]}  a5 {[%clk 0:01:16]} 40. Kf3 {[%clk 0:00:01]}  a4 {[%clk 0:01:16]} 41. Re8 {[%clk 0:00:01]}  a3 {[%clk 0:01:16]} 0-1


[Site "https://www.chess.com"]

[Event "Titled Tuesday Blitz May 4 2021"]
[White "Deepan Chakkravarthy J."]
[Black "Shlyakhetsky, Vladimir"]
[WhiteFideId "5011132"]
[BlackFideId "2805928"]
[WhiteElo "2490"]
[BlackElo "2168"]
[Result "1-0"]
[Round "01"]
[TimeControl "180+1"]
[Date "2021.05.04"]
[WhiteClock "0:00:49"]
[BlackClock "0:00:01"]

1. Nf3 {[%clk 0:02:59]}  e6 {[%clk 0:02:59]} 2. e3 {[%clk 0:02:59]}  d5 {[%clk 0:02:59]} 3. d4 {[%clk 0:02:59]}  c6 {[%clk 0:02:59]} 4. Ne5 {[%clk 0:02:58]}  Nd7 {[%clk 0:02:57]} 5. f4 {[%clk 0:02:57]}  Ngf6 {[%clk 0:02:55]} 6. Bd3 {[%clk 0:02:56]}  Be7 {[%clk 0:02:54]} 7. O-O {[%clk 0:02:55]}  O-O {[%clk 0:02:54]} 8. Nd2 {[%clk 0:02:55]}  Ne8 {[%clk 0:02:53]} 9. Qh5 {[%clk 0:02:46]}  f5 {[%clk 0:02:51]} 10. Ndf3 {[%clk 0:02:40]}  Nef6 {[%clk 0:02:48]} 11. Qh3 {[%clk 0:02:39]}  Nxe5 {[%clk 0:02:47]} 12. Nxe5 {[%clk 0:02:37]}  Nd7 {[%clk 0:02:48]} 13. Nf3 {[%clk 0:02:35]}  Nf6 {[%clk 0:02:48]} 14. Bd2 {[%clk 0:02:34]}  Bd7 {[%clk 0:02:48]} 15. Be1 {[%clk 0:02:34]}  c5 {[%clk 0:02:29]} 16. c3 {[%clk 0:02:33]}  c4 {[%clk 0:02:27]} 17. Bc2 {[%clk 0:02:29]}  b5 {[%clk 0:02:27]} 18. a3 {[%clk 0:02:28]}  a5 {[%clk 0:02:27]} 19. Ne5 {[%clk 0:02:27]}  Bd6 {[%clk 0:02:18]} 20. Bh4 {[%clk 0:02:23]}  Qc7 {[%clk 0:02:18]} 21. Kh1 {[%clk 0:02:17]}  Bxe5 {[%clk 0:02:15]} 22. fxe5 {[%clk 0:02:14]}  Ne4 {[%clk 0:02:15]} 23. Bxe4 {[%clk 0:02:10]}  dxe4 {[%clk 0:02:03]} 24. Be7 {[%clk 0:02:10]}  Rf7 {[%clk 0:01:57]} 25. Bd6 {[%clk 0:02:09]}  Qb7 {[%clk 0:01:55]} 26. g4 {[%clk 0:02:05]}  Qd5 {[%clk 0:01:32]} 27. Qg3 {[%clk 0:01:23]}  Bc6 {[%clk 0:01:28]} 28. Rf4 {[%clk 0:01:20]}  Kh8 {[%clk 0:01:19]} 29. h4 {[%clk 0:01:20]}  Rg8 {[%clk 0:00:53]} 30. h5 {[%clk 0:01:12]}  g5 {[%clk 0:00:49]} 31. hxg6 {[%clk 0:01:11]}  Rxg6 {[%clk 0:00:41]} 32. Qh4 {[%clk 0:01:05]}  Rfg7 {[%clk 0:00:15]} 33. Rg1 {[%clk 0:00:57]}  b4 {[%clk 0:00:10]} 34. axb4 {[%clk 0:00:55]}  axb4 {[%clk 0:00:08]} 35. Bxb4 {[%clk 0:00:54]}  Qb5 {[%clk 0:00:08]} 36. Be7 {[%clk 0:00:52]}  Kg8 {[%clk 0:00:04]} 37. Bf6 {[%clk 0:00:52]}  Ra7 {[%clk 0:00:04]} 38. Rff1 {[%clk 0:00:50]}  Qxb2 {[%clk 0:00:02]} 39. gxf5 {[%clk 0:00:50]}  exf5 {[%clk 0:00:02]} 40. Qh5 {[%clk 0:00:49]}  Be8 {[%clk 0:00:01]} 41. Qxf5 {[%clk 0:00:49]} 1-0


[Site "https://www.chess.com"]

[Event "Titled Tuesday Blitz May 4 2021"]
[White "Diaz Perez, Michel Alejandro"]
[Black "Eynullayev, Altay"]
[WhiteFideId "3517179"]
[BlackFideId "13413562"]
[WhiteElo "2337"]
[BlackElo "2079"]
[Result "1-0"]
[Round "01"]
[TimeControl "180+1"]
[Date "2021.05.04"]
[WhiteClock "0:01:27"]
[BlackClock "0:00:03"]

1. d4 {[%clk 0:02:59]}  Nf6 {[%clk 0:02:59]} 2. Nf3 {[%clk 0:03:00]}  g6 {[%clk 0:02:59]} 3. Nc3 {[%clk 0:02:57]}  d5 {[%clk 0:02:58]} 4. Bg5 {[%clk 0:02:53]}  Bg7 {[%clk 0:02:58]} 5. e3 {[%clk 0:02:53]}  c6 {[%clk 0:02:54]} 6. Bd3 {[%clk 0:02:53]}  Nbd7 {[%clk 0:02:45]} 7. Qe2 {[%clk 0:02:51]}  Qb6 {[%clk 0:02:28]} 8. O-O-O {[%clk 0:02:31]}  O-O {[%clk 0:02:07]} 9. e4 {[%clk 0:02:21]}  dxe4 {[%clk 0:01:44]} 10. Nxe4 {[%clk 0:02:21]}  Re8 {[%clk 0:01:31]} 11. h4 {[%clk 0:02:07]}  Nxe4 {[%clk 0:01:20]} 12. Qxe4 {[%clk 0:02:06]}  h5 {[%clk 0:00:49]} 13. Bc4 {[%clk 0:01:58]}  e6 {[%clk 0:00:49]} 14. g4 {[%clk 0:01:50]}  hxg4 {[%clk 0:00:47]} 15. Qxg4 {[%clk 0:01:48]}  Qb4 {[%clk 0:00:38]} 16. Bb3 {[%clk 0:01:45]}  c5 {[%clk 0:00:37]} 17. c3 {[%clk 0:01:37]}  Qb5 {[%clk 0:00:27]} 18. h5 {[%clk 0:01:36]}  c4 {[%clk 0:00:12]} 19. Bc2 {[%clk 0:01:34]}  gxh5 {[%clk 0:00:03]} 20. Qxh5 {[%clk 0:01:27]} 1-0


[Site "https://www.chess.com"]

[Event "Titled Tuesday Blitz May 4 2021"]
[White "Dobrov, Vladimir"]
[Black "Lagunow, Raphael"]
[WhiteFideId "4136594"]
[BlackFideId "24652644"]
[WhiteElo "2614"]
[BlackElo "2400"]
[Result "1-0"]
[Round "01"]
[TimeControl "180+1"]
[Date "2021.05.04"]
[WhiteClock "0:00:13"]
[BlackClock "0:00:08"]

1. d4 {[%clk 0:02:59]}  d5 {[%clk 0:02:59]} 2. c4 {[%clk 0:02:59]}  e6 {[%clk 0:02:59]} 3. Nc3 {[%clk 0:02:58]}  c6 {[%clk 0:02:59]} 4. e3 {[%clk 0:02:58]}  Nf6 {[%clk 0:02:57]} 5. Nf3 {[%clk 0:02:58]}  Nbd7 {[%clk 0:02:56]} 6. Bd3 {[%clk 0:02:57]}  dxc4 {[%clk 0:02:55]} 7. Bxc4 {[%clk 0:02:58]}  b5 {[%clk 0:02:56]} 8. Bd3 {[%clk 0:02:59]}  a6 {[%clk 0:02:53]} 9. O-O {[%clk 0:02:58]}  Bd6 {[%clk 0:02:47]} 10. e4 {[%clk 0:02:57]}  e5 {[%clk 0:02:46]} 11. Ne2 {[%clk 0:02:27]}  O-O {[%clk 0:02:42]} 12. Bg5 {[%clk 0:02:19]}  h6 {[%clk 0:02:39]} 13. Bh4 {[%clk 0:02:19]}  Re8 {[%clk 0:02:27]} 14. Ng3 {[%clk 0:02:01]}  g5 {[%clk 0:01:39]} 15. Nf5 {[%clk 0:02:00]}  Bf8 {[%clk 0:01:32]} 16. Bg3 {[%clk 0:01:36]}  exd4 {[%clk 0:01:30]} 17. N3xd4 {[%clk 0:01:35]}  c5 {[%clk 0:01:20]} 18. Nf3 {[%clk 0:01:12]}  c4 {[%clk 0:00:55]} 19. Bc2 {[%clk 0:01:11]}  Nc5 {[%clk 0:00:56]} 20. Nd6 {[%clk 0:00:43]}  Bxd6 {[%clk 0:00:52]} 21. Bxd6 {[%clk 0:00:44]}  Ncxe4 {[%clk 0:00:50]} 22. Bb4 {[%clk 0:00:34]}  Qxd1 {[%clk 0:00:48]} 23. Raxd1 {[%clk 0:00:34]}  Bg4 {[%clk 0:00:48]} 24. Rd4 {[%clk 0:00:32]}  Rad8 {[%clk 0:00:42]} 25. Rfd1 {[%clk 0:00:31]}  Rxd4 {[%clk 0:00:34]} 26. Rxd4 {[%clk 0:00:32]}  a5 {[%clk 0:00:15]} 27. Bxa5 {[%clk 0:00:31]}  Nc5 {[%clk 0:00:15]} 28. h3 {[%clk 0:00:30]}  Bxf3 {[%clk 0:00:15]} 29. gxf3 {[%clk 0:00:31]}  Ne6 {[%clk 0:00:15]} 30. Rd6 {[%clk 0:00:29]}  Nh5 {[%clk 0:00:15]} 31. Bc3 {[%clk 0:00:26]}  Nhf4 {[%clk 0:00:14]} 32. Kh2 {[%clk 0:00:27]}  Ne2 {[%clk 0:00:14]} 33. Bf6 {[%clk 0:00:25]}  N2f4 {[%clk 0:00:14]} 34. h4 {[%clk 0:00:22]}  gxh4 {[%clk 0:00:13]} 35. Bxh4 {[%clk 0:00:21]}  h5 {[%clk 0:00:13]} 36. Bf6 {[%clk 0:00:21]}  Ra8 {[%clk 0:00:11]} 37. a3 {[%clk 0:00:20]}  Rb8 {[%clk 0:00:11]} 38. Bc3 {[%clk 0:00:20]}  Ng6 {[%clk 0:00:10]} 39. Rd5 {[%clk 0:00:19]}  Nef4 {[%clk 0:00:10]} 40. Rg5 {[%clk 0:00:20]}  h4 {[%clk 0:00:10]} 41. Be4 {[%clk 0:00:18]}  Re8 {[%clk 0:00:10]} 42. Rxb5 {[%clk 0:00:17]}  Ne2 {[%clk 0:00:09]} 43. Bf6 {[%clk 0:00:15]}  Ngf4 {[%clk 0:00:09]} 44. Rg5+ {[%clk 0:00:14]}  Kf8 {[%clk 0:00:09]} 45. Rg4 {[%clk 0:00:14]}  Rb8 {[%clk 0:00:07]} 46. Rxh4 {[%clk 0:00:13]}  Ke8 {[%clk 0:00:08]} 47. Rh8+ {[%clk 0:00:13]} 1-0


[Site "https://www.chess.com"]

[Event "Titled Tuesday Blitz May 4 2021"]
[White "Dogan, Mire Deniz"]
[Black "Villegas, Pierre"]
[WhiteFideId "6317456"]
[BlackFideId "654183"]
[WhiteElo "1850"]
[BlackElo "2411"]
[Result "1-0"]
[Round "01"]
[TimeControl "180+1"]
[Date "2021.05.04"]
[WhiteClock "0:00:17"]
[BlackClock "0:00:03"]

1. d4 {[%clk 0:02:57]}  d5 {[%clk 0:02:58]} 2. c4 {[%clk 0:02:57]}  e6 {[%clk 0:02:57]} 3. Nc3 {[%clk 0:02:57]}  a6 {[%clk 0:02:57]} 4. a4 {[%clk 0:02:52]}  Bb4 {[%clk 0:02:48]} 5. Nf3 {[%clk 0:02:41]}  Nf6 {[%clk 0:02:44]} 6. Bg5 {[%clk 0:02:38]}  h6 {[%clk 0:02:37]} 7. Bxf6 {[%clk 0:02:17]}  Qxf6 {[%clk 0:02:38]} 8. cxd5 {[%clk 0:02:17]}  exd5 {[%clk 0:02:36]} 9. e3 {[%clk 0:02:15]}  O-O {[%clk 0:02:28]} 10. Qb3 {[%clk 0:01:58]}  Nc6 {[%clk 0:02:06]} 11. Be2 {[%clk 0:01:43]}  Be6 {[%clk 0:01:58]} 12. O-O {[%clk 0:01:41]}  Qd8 {[%clk 0:01:55]} 13. Na2 {[%clk 0:01:21]}  Bd6 {[%clk 0:01:52]} 14. Rac1 {[%clk 0:01:01]}  Qd7 {[%clk 0:01:43]} 15. Bd3 {[%clk 0:00:16]}  f5 {[%clk 0:01:31]} 16. Bb1 {[%clk 0:00:15]}  f4 {[%clk 0:01:12]} 17. Ne5 {[%clk 0:00:16]}  Nxe5 {[%clk 0:01:07]} 18. dxe5 {[%clk 0:00:17]}  Bxe5 {[%clk 0:01:08]} 19. exf4 {[%clk 0:00:17]}  Bxf4 {[%clk 0:01:07]} 20. Rcd1 {[%clk 0:00:16]}  c6 {[%clk 0:00:49]} 21. g3 {[%clk 0:00:13]}  Bd6 {[%clk 0:00:40]} 22. f4 {[%clk 0:00:14]}  Bf5 {[%clk 0:00:33]} 23. Bxf5 {[%clk 0:00:13]}  Rxf5 {[%clk 0:00:34]} 24. Nb4 {[%clk 0:00:09]}  Re8 {[%clk 0:00:30]} 25. Nd3 {[%clk 0:00:09]}  Rf7 {[%clk 0:00:29]} 26. Rf2 {[%clk 0:00:09]}  Rfe7 {[%clk 0:00:29]} 27. Rdd2 {[%clk 0:00:09]}  Re3 {[%clk 0:00:29]} 28. Kg2 {[%clk 0:00:09]}  Qf5 {[%clk 0:00:22]} 29. Qxb7 {[%clk 0:00:09]}  Rxd3 {[%clk 0:00:21]} 30. Qxc6 {[%clk 0:00:09]}  Qe4+ {[%clk 0:00:19]} 31. Kh3 {[%clk 0:00:09]}  Rxd2 {[%clk 0:00:17]} 32. Rxd2 {[%clk 0:00:09]}  Qe6+ {[%clk 0:00:16]} 33. Kg2 {[%clk 0:00:09]}  Bf8 {[%clk 0:00:13]} 34. Qxd5 {[%clk 0:00:07]}  Qxd5+ {[%clk 0:00:13]} 35. Rxd5 {[%clk 0:00:07]}  Re2+ {[%clk 0:00:14]} 36. Kf3 {[%clk 0:00:08]}  Rxb2 {[%clk 0:00:14]} 37. Ra5 {[%clk 0:00:09]}  Rxh2 {[%clk 0:00:12]} 38. Rxa6 {[%clk 0:00:09]}  Ra2 {[%clk 0:00:12]} 39. Ra8 {[%clk 0:00:09]}  Kf7 {[%clk 0:00:12]} 40. a5 {[%clk 0:00:10]}  Ra3+ {[%clk 0:00:11]} 41. Kg4 {[%clk 0:00:10]}  Be7 {[%clk 0:00:11]} 42. a6 {[%clk 0:00:10]}  g6 {[%clk 0:00:11]} 43. Kh3 {[%clk 0:00:09]}  h5 {[%clk 0:00:11]} 44. Kg2 {[%clk 0:00:09]}  Bd6 {[%clk 0:00:10]} 45. Kf2 {[%clk 0:00:09]}  h4 {[%clk 0:00:10]} 46. gxh4 {[%clk 0:00:09]}  Bxf4 {[%clk 0:00:10]} 47. Kg2 {[%clk 0:00:09]}  Bg3 {[%clk 0:00:10]} 48. Kh3 {[%clk 0:00:09]}  Bc7+ {[%clk 0:00:08]} 49. Kg4 {[%clk 0:00:10]}  Kg7 {[%clk 0:00:09]} 50. Ra7 {[%clk 0:00:10]}  Rc3 {[%clk 0:00:08]} 51. Rb7 {[%clk 0:00:11]}  Rc4+ {[%clk 0:00:06]} 52. Kf3 {[%clk 0:00:11]}  Kf6 {[%clk 0:00:06]} 53. a7 {[%clk 0:00:12]}  Ra4 {[%clk 0:00:05]} 54. Rxc7 {[%clk 0:00:12]}  Ra3+ {[%clk 0:00:02]} 55. Ke4 {[%clk 0:00:12]}  Ra4+ {[%clk 0:00:02]} 56. Kd5 {[%clk 0:00:13]}  Ra1 {[%clk 0:00:02]} 57. Kc6 {[%clk 0:00:13]}  Ra2 {[%clk 0:00:02]} 58. Kb7 {[%clk 0:00:14]}  Rb2+ {[%clk 0:00:02]} 59. Kc8 {[%clk 0:00:14]}  Ra2 {[%clk 0:00:03]} 60. Kb8 {[%clk 0:00:14]}  Kf5 {[%clk 0:00:01]} 61. a8=Q {[%clk 0:00:14]}  Rxa8+ {[%clk 0:00:02]} 62. Kxa8 {[%clk 0:00:15]}  Kg4 {[%clk 0:00:02]} 63. Rc4+ {[%clk 0:00:16]}  Kh5 {[%clk 0:00:03]} 64. Kb7 {[%clk 0:00:17]} 1-0


[Site "https://www.chess.com"]

[Event "Titled Tuesday Blitz May 4 2021"]
[White "Domingo Nunez, Alejandro"]
[Black "Sailer, Mike"]
[WhiteFideId "22245561"]
[BlackFideId "2012901"]
[WhiteElo "2269"]
[BlackElo "2109"]
[Result "1-0"]
[Round "01"]
[TimeControl "180+1"]
[Date "2021.05.04"]
[WhiteClock "0:00:50"]
[BlackClock "0:01:05"]

1. e4 {[%clk 0:02:58]}  d5 {[%clk 0:02:59]} 2. exd5 {[%clk 0:02:57]}  Qxd5 {[%clk 0:02:58]} 3. Nc3 {[%clk 0:02:58]}  Qd6 {[%clk 0:02:56]} 4. d4 {[%clk 0:02:54]}  Nf6 {[%clk 0:02:56]} 5. Nf3 {[%clk 0:02:54]}  c6 {[%clk 0:02:56]} 6. h3 {[%clk 0:02:53]}  Bf5 {[%clk 0:02:57]} 7. Bc4 {[%clk 0:02:47]}  e6 {[%clk 0:02:57]} 8. Be3 {[%clk 0:02:46]}  Be7 {[%clk 0:02:57]} 9. Qe2 {[%clk 0:02:46]}  Nbd7 {[%clk 0:02:57]} 10. O-O-O {[%clk 0:02:43]}  h6 {[%clk 0:02:55]} 11. g4 {[%clk 0:02:43]}  Bh7 {[%clk 0:02:55]} 12. Rhg1 {[%clk 0:02:38]}  O-O-O {[%clk 0:02:54]} 13. h4 {[%clk 0:02:18]}  Nd5 {[%clk 0:02:38]} 14. Nxd5 {[%clk 0:02:02]}  cxd5 {[%clk 0:02:33]} 15. Bd3 {[%clk 0:01:59]}  Bxd3 {[%clk 0:02:32]} 16. Rxd3 {[%clk 0:01:59]}  Kb8 {[%clk 0:02:33]} 17. Rb3 {[%clk 0:01:55]}  Nb6 {[%clk 0:02:31]} 18. Ne5 {[%clk 0:01:40]}  Bxh4 {[%clk 0:01:35]} 19. Nxf7 {[%clk 0:01:36]}  Qd7 {[%clk 0:01:30]} 20. Nxh8 {[%clk 0:01:35]}  Rxh8 {[%clk 0:01:30]} 21. Bf4+ {[%clk 0:01:34]}  Ka8 {[%clk 0:01:30]} 22. Re1 {[%clk 0:01:02]}  Re8 {[%clk 0:01:25]} 23. Qf3 {[%clk 0:00:59]}  Bf6 {[%clk 0:01:18]} 24. Rxb6 {[%clk 0:00:57]}  e5 {[%clk 0:01:08]} 25. dxe5 {[%clk 0:00:56]}  axb6 {[%clk 0:01:04]} 26. Qa3+ {[%clk 0:00:52]}  Kb8 {[%clk 0:01:05]} 27. e6+ {[%clk 0:00:50]} 1-0


[Site "https://www.chess.com"]

[Event "Titled Tuesday Blitz May 4 2021"]
[White "Dong, Bao Nghia"]
[Black "Saucey, Michel"]
[WhiteFideId "12400343"]
[BlackFideId "601845"]
[WhiteElo "2409"]
[BlackElo "2253"]
[Result "1-0"]
[Round "01"]
[TimeControl "180+1"]
[Date "2021.05.04"]
[WhiteClock "0:00:34"]
[BlackClock "0:00:01"]

1. d4 {[%clk 0:03:00]}  d5 {[%clk 0:02:56]} 2. c4 {[%clk 0:03:00]}  Nf6 {[%clk 0:02:55]} 3. Nc3 {[%clk 0:03:01]}  e6 {[%clk 0:02:53]} 4. Nf3 {[%clk 0:03:01]}  dxc4 {[%clk 0:02:52]} 5. Bg5 {[%clk 0:03:01]}  Bb4 {[%clk 0:02:50]} 6. e3 {[%clk 0:03:00]}  b5 {[%clk 0:02:35]} 7. Be2 {[%clk 0:02:57]}  c6 {[%clk 0:02:25]} 8. O-O {[%clk 0:02:56]}  h6 {[%clk 0:02:25]} 9. Bh4 {[%clk 0:02:56]}  Nbd7 {[%clk 0:02:22]} 10. a4 {[%clk 0:02:55]}  a6 {[%clk 0:02:10]} 11. axb5 {[%clk 0:01:57]}  Bxc3 {[%clk 0:02:08]} 12. bxc3 {[%clk 0:01:58]}  cxb5 {[%clk 0:02:08]} 13. Qc2 {[%clk 0:01:54]}  Bb7 {[%clk 0:02:07]} 14. Ne5 {[%clk 0:01:52]}  Qc7 {[%clk 0:01:34]} 15. f4 {[%clk 0:01:51]}  Nd5 {[%clk 0:01:30]} 16. Rf3 {[%clk 0:01:40]}  Nxe5 {[%clk 0:01:19]} 17. fxe5 {[%clk 0:01:39]}  g5 {[%clk 0:01:19]} 18. Bf2 {[%clk 0:01:38]}  Ne7 {[%clk 0:01:16]} 19. Rh3 {[%clk 0:01:34]}  O-O-O {[%clk 0:01:10]} 20. Bf3 {[%clk 0:01:32]}  g4 {[%clk 0:00:38]} 21. Bxg4 {[%clk 0:01:30]}  Rdg8 {[%clk 0:00:37]} 22. Bf3 {[%clk 0:01:30]}  Bxf3 {[%clk 0:00:36]} 23. Rxf3 {[%clk 0:01:31]}  Qb7 {[%clk 0:00:35]} 24. Bg3 {[%clk 0:01:29]}  Nf5 {[%clk 0:00:33]} 25. e4 {[%clk 0:01:27]}  Nxg3 {[%clk 0:00:31]} 26. hxg3 {[%clk 0:01:28]}  Rg4 {[%clk 0:00:29]} 27. Qf2 {[%clk 0:00:57]}  Rf8 {[%clk 0:00:20]} 28. Rf4 {[%clk 0:00:54]}  Rg5 {[%clk 0:00:18]} 29. Qa2 {[%clk 0:00:43]}  b4 {[%clk 0:00:06]} 30. Qxc4+ {[%clk 0:00:43]}  Kb8 {[%clk 0:00:03]} 31. Qxb4 {[%clk 0:00:38]}  Qxb4 {[%clk 0:00:03]} 32. cxb4 {[%clk 0:00:39]}  Kb7 {[%clk 0:00:03]} 33. Raf1 {[%clk 0:00:37]}  Rg7 {[%clk 0:00:04]} 34. d5 {[%clk 0:00:36]}  exd5 {[%clk 0:00:04]} 35. exd5 {[%clk 0:00:37]}  Kc7 {[%clk 0:00:02]} 36. e6 {[%clk 0:00:37]}  f5 {[%clk 0:00:01]} 37. Rxf5 {[%clk 0:00:35]}  Rd8 {[%clk 0:00:02]} 38. Rf7+ {[%clk 0:00:34]}  Rxf7 {[%clk 0:00:02]} 39. exf7 {[%clk 0:00:34]}  Rf8 {[%clk 0:00:03]} 40. Rf6 {[%clk 0:00:34]}  Kd7 {[%clk 0:00:01]} 41. d6 {[%clk 0:00:34]}  Kc6 {[%clk 0:00:01]} 42. g4 {[%clk 0:00:34]}  Kd7 {[%clk 0:00:01]} 43. Kf1 {[%clk 0:00:34]} 1-0


[Site "https://www.chess.com"]